[Event "Titled Tuesday Blitz October 04 Late 2022"]
[White "Nasuta, Grzegorz"]
[Black "Kravtsiv, Martyn"]
[WhiteFideId "1141686"]
[BlackFideId "14113147"]
[WhiteElo "2442"]
[BlackElo "2694"]
[Result "1/2-1/2"]
[Round "04"]
[TimeControl "180+1"]
[Date "2022.10.04"]
[WhiteClock "0:00:04"]
[BlackClock "0:00:09"]

1. e4 {[%clk 0:03:00]}  e5 {[%clk 0:02:59]} 2. Nf3 {[%clk 0:03:01]}  Nc6 {[%clk 0:02:59]} 3. Bc4 {[%clk 0:03:01]}  Nf6 {[%clk 0:02:58]} 4. d3 {[%clk 0:03:02]}  Bc5 {[%clk 0:02:58]} 5. O-O {[%clk 0:03:02]}  O-O {[%clk 0:02:58]} 6. h3 {[%clk 0:03:02]}  d6 {[%clk 0:02:55]} 7. c3 {[%clk 0:03:01]}  a6 {[%clk 0:02:54]} 8. Bb3 {[%clk 0:03:00]}  Ba7 {[%clk 0:02:54]} 9. Re1 {[%clk 0:03:00]}  h6 {[%clk 0:02:54]} 10. Nbd2 {[%clk 0:03:00]}  Nh5 {[%clk 0:02:54]} 11. Nf1 {[%clk 0:02:57]}  Qf6 {[%clk 0:02:54]} 12. Be3 {[%clk 0:02:47]}  Bxe3 {[%clk 0:02:53]} 13. fxe3 {[%clk 0:02:47]}  g6 {[%clk 0:02:44]} 14. Kh2 {[%clk 0:02:32]}  Be6 {[%clk 0:02:39]} 15. g4 {[%clk 0:02:29]}  Bxb3 {[%clk 0:02:35]} 16. axb3 {[%clk 0:02:30]}  Ng7 {[%clk 0:02:35]} 17. Ng3 {[%clk 0:02:31]}  Kh7 {[%clk 0:02:29]} 18. Rf1 {[%clk 0:02:31]}  Qe7 {[%clk 0:02:29]} 19. Qe2 {[%clk 0:02:24]}  Rae8 {[%clk 0:02:23]} 20. Rf2 {[%clk 0:02:24]}  Nd8 {[%clk 0:02:10]} 21. Raf1 {[%clk 0:02:24]}  Nde6 {[%clk 0:02:10]} 22. b4 {[%clk 0:02:17]}  b6 {[%clk 0:01:56]} 23. Nd2 {[%clk 0:01:57]}  Qh4 {[%clk 0:01:42]} 24. Nf3 {[%clk 0:01:33]}  Qe7 {[%clk 0:01:41]} 25. Nd2 {[%clk 0:01:33]}  Ra8 {[%clk 0:01:16]} 26. Ra1 {[%clk 0:01:04]}  a5 {[%clk 0:01:14]} 27. bxa5 {[%clk 0:01:04]}  Rxa5 {[%clk 0:01:15]} 28. Rxa5 {[%clk 0:01:04]}  bxa5 {[%clk 0:01:16]} 29. Nc4 {[%clk 0:01:02]}  a4 {[%clk 0:01:14]} 30. Qf1 {[%clk 0:01:00]}  Kg8 {[%clk 0:01:08]} 31. Nf5 {[%clk 0:00:52]}  Qg5 {[%clk 0:00:48]} 32. h4 {[%clk 0:00:51]}  Qd8 {[%clk 0:00:47]} 33. Nxh6+ {[%clk 0:00:51]}  Kh7 {[%clk 0:00:48]} 34. g5 {[%clk 0:00:50]}  f6 {[%clk 0:00:43]} 35. Rxf6 {[%clk 0:00:33]}  Rxf6 {[%clk 0:00:41]} 36. Qxf6 {[%clk 0:00:34]}  Qxf6 {[%clk 0:00:39]} 37. gxf6 {[%clk 0:00:35]}  Kxh6 {[%clk 0:00:38]} 38. fxg7 {[%clk 0:00:36]}  Kxg7 {[%clk 0:00:38]} 39. Kg3 {[%clk 0:00:33]}  Nc5 {[%clk 0:00:39]} 40. d4 {[%clk 0:00:31]}  exd4 {[%clk 0:00:32]} 41. exd4 {[%clk 0:00:30]}  Nxe4+ {[%clk 0:00:32]} 42. Kf4 {[%clk 0:00:31]}  Nf2 {[%clk 0:00:30]} 43. Ke3 {[%clk 0:00:17]}  Ng4+ {[%clk 0:00:27]} 44. Kf4 {[%clk 0:00:17]}  Nf6 {[%clk 0:00:27]} 45. Ne3 {[%clk 0:00:17]}  Kf7 {[%clk 0:00:25]} 46. d5 {[%clk 0:00:15]}  Nd7 {[%clk 0:00:24]} 47. Kg5 {[%clk 0:00:14]}  Ne5 {[%clk 0:00:24]} 48. Kh6 {[%clk 0:00:05]}  Kf6 {[%clk 0:00:22]} 49. h5 {[%clk 0:00:04]}  gxh5 {[%clk 0:00:22]} 50. Kxh5 {[%clk 0:00:05]}  Nd3 {[%clk 0:00:22]} 51. Nc4 {[%clk 0:00:05]}  Kf5 {[%clk 0:00:21]} 52. Kh6 {[%clk 0:00:03]}  Ke4 {[%clk 0:00:20]} 53. Kg6 {[%clk 0:00:01]}  Kxd5 {[%clk 0:00:20]} 54. Ne3+ {[%clk 0:00:02]}  Ke4 {[%clk 0:00:19]} 55. Nd1 {[%clk 0:00:02]}  Kf3 {[%clk 0:00:19]} 56. c4 {[%clk 0:00:03]}  Ke4 {[%clk 0:00:14]} 57. Nc3+ {[%clk 0:00:03]}  Kd4 {[%clk 0:00:15]} 58. Nxa4 {[%clk 0:00:04]}  Kxc4 {[%clk 0:00:15]} 59. Kf5 {[%clk 0:00:04]}  Kb3 {[%clk 0:00:14]} 60. Nc3 {[%clk 0:00:04]}  Nxb2 {[%clk 0:00:14]} 61. Nb5 {[%clk 0:00:04]}  c5 {[%clk 0:00:10]} 62. Nxd6 {[%clk 0:00:05]}  Nc4 {[%clk 0:00:11]} 63. Ne4 {[%clk 0:00:03]}  Ne3+ {[%clk 0:00:11]} 64. Kf4 {[%clk 0:00:04]}  Ng2+ {[%clk 0:00:10]} 65. Kg3 {[%clk 0:00:03]}  c4 {[%clk 0:00:09]} 66. Kxg2 {[%clk 0:00:03]}  c3 {[%clk 0:00:09]} 67. Nxc3 {[%clk 0:00:04]} 1/2-1/2


[Site "https://www.chess.com"]

[Event "Titled Tuesday Blitz October 04 Late 2022"]
[White "Nepomniachtchi, Ian"]
[Black "Zhigalko, Sergei"]
[WhiteFideId "4168119"]
[BlackFideId "13502956"]
[WhiteElo "2781"]
[BlackElo "2662"]
[Result "1-0"]
[Round "04"]
[TimeControl "180+1"]
[Date "2022.10.04"]
[WhiteClock "0:00:14"]
[BlackClock "0:00:04"]

1. d4 {[%clk 0:03:00]}  Nf6 {[%clk 0:03:00]} 2. c4 {[%clk 0:03:01]}  e6 {[%clk 0:03:00]} 3. Nf3 {[%clk 0:03:02]}  b6 {[%clk 0:03:00]} 4. g3 {[%clk 0:03:02]}  Ba6 {[%clk 0:03:01]} 5. Qc2 {[%clk 0:02:59]}  Bb4+ {[%clk 0:03:01]} 6. Nbd2 {[%clk 0:02:57]}  Bb7 {[%clk 0:03:00]} 7. Bg2 {[%clk 0:02:56]}  Be4 {[%clk 0:03:00]} 8. Qb3 {[%clk 0:02:54]}  Bxd2+ {[%clk 0:03:00]} 9. Bxd2 {[%clk 0:02:54]}  O-O {[%clk 0:03:01]} 10. O-O {[%clk 0:02:53]}  d6 {[%clk 0:03:02]} 11. Rfe1 {[%clk 0:02:49]}  Nbd7 {[%clk 0:03:02]} 12. Bf1 {[%clk 0:02:47]}  a5 {[%clk 0:03:01]} 13. Ng5 {[%clk 0:02:45]}  Bb7 {[%clk 0:03:00]} 14. f3 {[%clk 0:02:43]}  c5 {[%clk 0:02:48]} 15. Bc3 {[%clk 0:02:40]}  h6 {[%clk 0:02:36]} 16. Nh3 {[%clk 0:02:39]}  cxd4 {[%clk 0:02:35]} 17. Bxd4 {[%clk 0:02:39]}  e5 {[%clk 0:02:36]} 18. Bf2 {[%clk 0:02:30]}  Nc5 {[%clk 0:02:30]} 19. Qc3 {[%clk 0:02:26]}  e4 {[%clk 0:01:53]} 20. Rad1 {[%clk 0:02:22]}  Re8 {[%clk 0:01:46]} 21. Bd4 {[%clk 0:02:21]}  Ncd7 {[%clk 0:01:46]} 22. Nf2 {[%clk 0:02:16]}  Rc8 {[%clk 0:01:36]} 23. b3 {[%clk 0:02:13]}  b5 {[%clk 0:01:31]} 24. Bh3 {[%clk 0:02:10]}  b4 {[%clk 0:00:58]} 25. Qb2 {[%clk 0:01:59]}  exf3 {[%clk 0:00:57]} 26. Bxf6 {[%clk 0:01:59]}  Nxf6 {[%clk 0:00:53]} 27. Bxc8 {[%clk 0:01:58]}  Qxc8 {[%clk 0:00:52]} 28. Rxd6 {[%clk 0:01:45]}  Ng4 {[%clk 0:00:16]} 29. Qd4 {[%clk 0:01:23]}  Ne5 {[%clk 0:00:04]} 30. e4 {[%clk 0:01:17]}  f6 {[%clk 0:00:04]} 31. Rd1 {[%clk 0:01:16]}  Kh7 {[%clk 0:00:05]} 32. Qe3 {[%clk 0:01:13]}  Qc7 {[%clk 0:00:04]} 33. Qf4 {[%clk 0:00:59]}  a4 {[%clk 0:00:04]} 34. Qf5+ {[%clk 0:00:57]}  Kg8 {[%clk 0:00:04]} 35. Rd7 {[%clk 0:00:51]}  Nxd7 {[%clk 0:00:03]} 36. Rxd7 {[%clk 0:00:52]}  Qc6 {[%clk 0:00:02]} 37. Rd4 {[%clk 0:00:39]}  Bc8 {[%clk 0:00:02]} 38. Qxf3 {[%clk 0:00:39]}  axb3 {[%clk 0:00:02]} 39. axb3 {[%clk 0:00:40]}  Bb7 {[%clk 0:00:02]} 40. Qf5 {[%clk 0:00:38]}  Qa6 {[%clk 0:00:02]} 41. Qd7 {[%clk 0:00:35]}  Rf8 {[%clk 0:00:02]} 42. Kg2 {[%clk 0:00:35]}  Kh8 {[%clk 0:00:02]} 43. Qd6 {[%clk 0:00:34]}  Qa8 {[%clk 0:00:02]} 44. Qxb4 {[%clk 0:00:33]}  f5 {[%clk 0:00:02]} 45. Qa4 {[%clk 0:00:24]}  fxe4 {[%clk 0:00:02]} 46. Qxa8 {[%clk 0:00:22]}  Bxa8 {[%clk 0:00:01]} 47. Nxe4 {[%clk 0:00:21]}  Rb8 {[%clk 0:00:02]} 48. c5 {[%clk 0:00:17]}  Kh7 {[%clk 0:00:01]} 49. b4 {[%clk 0:00:17]}  Rb7 {[%clk 0:00:01]} 50. Kf3 {[%clk 0:00:16]}  Rf7+ {[%clk 0:00:01]} 51. Ke3 {[%clk 0:00:17]}  Bc6 {[%clk 0:00:02]} 52. Nd6 {[%clk 0:00:16]}  Rf3+ {[%clk 0:00:03]} 53. Kd2 {[%clk 0:00:15]}  Rb3 {[%clk 0:00:03]} 54. Kc2 {[%clk 0:00:15]}  Ba4 {[%clk 0:00:04]} 55. Kd2 {[%clk 0:00:14]}  Bc6 {[%clk 0:00:04]} 56. Nf5 {[%clk 0:00:13]}  Kg8 {[%clk 0:00:04]} 57. Ne7+ {[%clk 0:00:13]}  Kf7 {[%clk 0:00:04]} 58. Nxc6 {[%clk 0:00:14]} 1-0


[Site "https://www.chess.com"]

[Event "Titled Tuesday Blitz October 04 Late 2022"]
[White "Rasulov, Vugar"]
[Black "Martinez Alcantara, Jose Eduardo"]
[WhiteFideId "13402390"]
[BlackFideId "3805662"]
[WhiteElo "2509"]
[BlackElo "2703"]
[Result "0-1"]
[Round "04"]
[TimeControl "180+1"]
[Date "2022.10.04"]
[WhiteClock "0:00:18"]
[BlackClock "0:00:37"]

1. d4 {[%clk 0:03:00]}  Nf6 {[%clk 0:03:00]} 2. c4 {[%clk 0:03:01]}  e6 {[%clk 0:03:00]} 3. Nf3 {[%clk 0:03:01]}  Bb4+ {[%clk 0:03:00]} 4. Nbd2 {[%clk 0:03:00]}  b6 {[%clk 0:03:00]} 5. g3 {[%clk 0:02:59]}  Bb7 {[%clk 0:03:00]} 6. Bg2 {[%clk 0:02:59]}  O-O {[%clk 0:03:01]} 7. O-O {[%clk 0:03:00]}  a5 {[%clk 0:03:02]} 8. Ne5 {[%clk 0:02:55]}  Bxg2 {[%clk 0:03:01]} 9. Kxg2 {[%clk 0:02:56]}  d6 {[%clk 0:03:01]} 10. Nd3 {[%clk 0:02:55]}  Bxd2 {[%clk 0:03:00]} 11. Bxd2 {[%clk 0:02:56]}  Nbd7 {[%clk 0:03:00]} 12. Bg5 {[%clk 0:02:46]}  Qb8 {[%clk 0:02:58]} 13. f3 {[%clk 0:02:42]}  c5 {[%clk 0:02:56]} 14. dxc5 {[%clk 0:02:36]}  bxc5 {[%clk 0:02:56]} 15. e4 {[%clk 0:02:31]}  h6 {[%clk 0:02:52]} 16. Bxf6 {[%clk 0:02:24]}  Nxf6 {[%clk 0:02:53]} 17. Qe2 {[%clk 0:02:23]}  e5 {[%clk 0:02:52]} 18. Nf2 {[%clk 0:02:14]}  a4 {[%clk 0:02:49]} 19. Rfd1 {[%clk 0:02:13]}  Ra6 {[%clk 0:02:49]} 20. Rd2 {[%clk 0:02:11]}  Re8 {[%clk 0:02:44]} 21. Nd1 {[%clk 0:02:10]}  Nh7 {[%clk 0:02:43]} 22. Nc3 {[%clk 0:02:06]}  Nf8 {[%clk 0:02:43]} 23. Qd1 {[%clk 0:01:59]}  a3 {[%clk 0:02:40]} 24. b3 {[%clk 0:01:59]}  Ne6 {[%clk 0:02:40]} 25. Nb5 {[%clk 0:01:55]}  Nd4 {[%clk 0:02:40]} 26. Nxd4 {[%clk 0:01:55]}  exd4 {[%clk 0:02:41]} 27. Re2 {[%clk 0:01:51]}  Ra7 {[%clk 0:02:39]} 28. Qd3 {[%clk 0:01:51]}  Rae7 {[%clk 0:02:39]} 29. Rae1 {[%clk 0:01:52]}  Qb4 {[%clk 0:02:39]} 30. Kf2 {[%clk 0:01:51]}  g6 {[%clk 0:02:29]} 31. Qd2 {[%clk 0:01:51]}  Qxd2 {[%clk 0:02:17]} 32. Rxd2 {[%clk 0:01:52]}  f5 {[%clk 0:02:18]} 33. Rde2 {[%clk 0:01:40]}  fxe4 {[%clk 0:02:18]} 34. fxe4 {[%clk 0:01:40]}  Kg7 {[%clk 0:02:12]} 35. Kf3 {[%clk 0:01:40]}  Kf6 {[%clk 0:02:11]} 36. Rf2 {[%clk 0:01:33]}  Kg7 {[%clk 0:02:07]} 37. Rfe2 {[%clk 0:01:31]}  h5 {[%clk 0:02:07]} 38. h4 {[%clk 0:01:31]}  Rf7+ {[%clk 0:02:06]} 39. Kg2 {[%clk 0:01:31]}  Re5 {[%clk 0:02:06]} 40. Rf2 {[%clk 0:01:28]}  Rfe7 {[%clk 0:02:03]} 41. Rf4 {[%clk 0:01:27]}  R5e6 {[%clk 0:01:57]} 42. Kf3 {[%clk 0:01:28]}  Re5 {[%clk 0:01:54]} 43. Rd1 {[%clk 0:01:25]}  R7e6 {[%clk 0:01:46]} 44. Rg1 {[%clk 0:01:21]}  Rf6 {[%clk 0:01:42]} 45. Rb1 {[%clk 0:01:16]}  Re7 {[%clk 0:01:41]} 46. b4 {[%clk 0:01:14]}  Rb7 {[%clk 0:01:15]} 47. b5 {[%clk 0:01:14]}  Kf7 {[%clk 0:01:14]} 48. Rb3 {[%clk 0:01:10]}  Ra7 {[%clk 0:01:14]} 49. Ke2 {[%clk 0:01:05]}  Ke6 {[%clk 0:01:10]} 50. Rbf3 {[%clk 0:00:43]}  Rxf4 {[%clk 0:01:09]} 51. gxf4 {[%clk 0:00:44]}  Ra4 {[%clk 0:01:09]} 52. Rg3 {[%clk 0:00:44]}  Rxc4 {[%clk 0:00:47]} 53. Rxg6+ {[%clk 0:00:44]}  Kd7 {[%clk 0:00:48]} 54. Rg7+ {[%clk 0:00:44]}  Kc8 {[%clk 0:00:48]} 55. Kd2 {[%clk 0:00:36]}  Rb4 {[%clk 0:00:47]} 56. f5 {[%clk 0:00:37]}  Kd8 {[%clk 0:00:47]} 57. f6 {[%clk 0:00:33]}  Ke8 {[%clk 0:00:47]} 58. Rb7 {[%clk 0:00:32]}  c4 {[%clk 0:00:45]} 59. b6 {[%clk 0:00:30]}  Rb2+ {[%clk 0:00:46]} 60. Kc1 {[%clk 0:00:25]}  c3 {[%clk 0:00:42]} 61. Re7+ {[%clk 0:00:23]}  Kf8 {[%clk 0:00:41]} 62. b7 {[%clk 0:00:17]}  d3 {[%clk 0:00:41]} 63. Rc7 {[%clk 0:00:18]}  d2+ {[%clk 0:00:36]} 64. Kd1 {[%clk 0:00:18]}  Rb1+ {[%clk 0:00:37]} 0-1


[Site "https://www.chess.com"]

[Event "Titled Tuesday Blitz October 04 Late 2022"]
[White "Sokolovsky, Yahli"]
[Black "Melkumyan, Hrant"]
[WhiteFideId "2820242"]
[BlackFideId "13302485"]
[WhiteElo "2316"]
[BlackElo "2604"]
[Result "0-1"]
[Round "04"]
[TimeControl "180+1"]
[Date "2022.10.04"]
[WhiteClock "0:00:04"]
[BlackClock "0:00:35"]

1. b3 {[%clk 0:03:00]}  d5 {[%clk 0:02:57]} 2. Bb2 {[%clk 0:03:01]}  Nf6 {[%clk 0:02:57]} 3. e3 {[%clk 0:03:02]}  g6 {[%clk 0:02:57]} 4. Nf3 {[%clk 0:02:55]}  Bg7 {[%clk 0:02:56]} 5. d4 {[%clk 0:02:55]}  O-O {[%clk 0:02:55]} 6. Be2 {[%clk 0:02:55]}  Bf5 {[%clk 0:02:53]} 7. O-O {[%clk 0:02:55]}  Ne4 {[%clk 0:02:53]} 8. c4 {[%clk 0:02:51]}  c6 {[%clk 0:02:49]} 9. Nc3 {[%clk 0:02:51]}  Nxc3 {[%clk 0:02:46]} 10. Bxc3 {[%clk 0:02:51]}  Nd7 {[%clk 0:02:47]} 11. Rc1 {[%clk 0:02:25]}  Nf6 {[%clk 0:02:42]} 12. Nd2 {[%clk 0:02:25]}  a5 {[%clk 0:02:41]} 13. Re1 {[%clk 0:02:20]}  Qb6 {[%clk 0:02:32]} 14. Bf1 {[%clk 0:01:57]}  Rfd8 {[%clk 0:02:31]} 15. c5 {[%clk 0:01:47]}  Qc7 {[%clk 0:02:31]} 16. f3 {[%clk 0:01:48]}  e5 {[%clk 0:02:20]} 17. dxe5 {[%clk 0:01:26]}  Nd7 {[%clk 0:02:19]} 18. e6 {[%clk 0:01:06]}  Bxe6 {[%clk 0:02:19]} 19. Bxg7 {[%clk 0:01:05]}  Kxg7 {[%clk 0:02:20]} 20. f4 {[%clk 0:00:59]}  Nf6 {[%clk 0:02:17]} 21. Nf3 {[%clk 0:01:00]}  Bg4 {[%clk 0:02:13]} 22. Qd4 {[%clk 0:00:47]}  Bxf3 {[%clk 0:02:07]} 23. gxf3 {[%clk 0:00:48]}  Qe7 {[%clk 0:02:08]} 24. Bh3 {[%clk 0:00:40]}  Kg8 {[%clk 0:02:07]} 25. Kh1 {[%clk 0:00:40]}  Re8 {[%clk 0:02:04]} 26. Rc2 {[%clk 0:00:37]}  Nh5 {[%clk 0:02:03]} 27. Rce2 {[%clk 0:00:36]}  Qf6 {[%clk 0:02:01]} 28. Rd1 {[%clk 0:00:28]}  Kg7 {[%clk 0:01:59]} 29. Bg4 {[%clk 0:00:24]}  Nxf4 {[%clk 0:01:55]} 30. Ree1 {[%clk 0:00:20]}  Qxd4 {[%clk 0:01:49]} 31. Rxd4 {[%clk 0:00:20]}  Ne6 {[%clk 0:01:48]} 32. Bxe6 {[%clk 0:00:21]}  Rxe6 {[%clk 0:01:49]} 33. Kg2 {[%clk 0:00:21]}  Re5 {[%clk 0:01:43]} 34. Ra4 {[%clk 0:00:18]}  Rae8 {[%clk 0:01:40]} 35. Kf2 {[%clk 0:00:17]}  Rh5 {[%clk 0:01:40]} 36. Rh1 {[%clk 0:00:17]}  Rhe5 {[%clk 0:01:26]} 37. Re1 {[%clk 0:00:17]}  d4 {[%clk 0:01:27]} 38. Rxd4 {[%clk 0:00:12]}  Rxc5 {[%clk 0:01:26]} 39. Rd7 {[%clk 0:00:12]}  b5 {[%clk 0:01:25]} 40. Ra7 {[%clk 0:00:13]}  b4 {[%clk 0:01:23]} 41. Re2 {[%clk 0:00:13]}  Re6 {[%clk 0:01:22]} 42. Rd2 {[%clk 0:00:12]}  Rh5 {[%clk 0:01:20]} 43. Rdd7 {[%clk 0:00:07]}  Rf6 {[%clk 0:01:16]} 44. Kg3 {[%clk 0:00:08]}  Rg5+ {[%clk 0:01:14]} 45. Kf2 {[%clk 0:00:09]}  Rc5 {[%clk 0:01:15]} 46. Rd2 {[%clk 0:00:08]}  Rcf5 {[%clk 0:01:11]} 47. f4 {[%clk 0:00:08]}  Re6 {[%clk 0:01:10]} 48. Rdd7 {[%clk 0:00:05]}  g5 {[%clk 0:01:02]} 49. Kf3 {[%clk 0:00:05]}  gxf4 {[%clk 0:01:03]} 50. exf4 {[%clk 0:00:05]}  Ref6 {[%clk 0:01:03]} 51. Rd4 {[%clk 0:00:05]}  Rc5 {[%clk 0:01:04]} 52. Rdd7 {[%clk 0:00:05]}  Rc3+ {[%clk 0:01:01]} 53. Ke4 {[%clk 0:00:05]}  Rc2 {[%clk 0:01:02]} 54. Rxa5 {[%clk 0:00:05]}  Re2+ {[%clk 0:00:55]} 55. Kf3 {[%clk 0:00:05]}  Rxh2 {[%clk 0:00:56]} 56. Rg5+ {[%clk 0:00:05]}  Rg6 {[%clk 0:00:56]} 57. Rf5 {[%clk 0:00:06]}  Rh3+ {[%clk 0:00:56]} 58. Ke4 {[%clk 0:00:05]}  Re6+ {[%clk 0:00:56]} 59. Kd4 {[%clk 0:00:06]}  Rf6 {[%clk 0:00:53]} 60. Rg5+ {[%clk 0:00:03]}  Kf8 {[%clk 0:00:42]} 61. Ke5 {[%clk 0:00:04]}  Re6+ {[%clk 0:00:38]} 62. Kd4 {[%clk 0:00:04]}  Rh2 {[%clk 0:00:35]} 63. Rf5 {[%clk 0:00:04]}  Rd2+ {[%clk 0:00:35]} 0-1


[Site "https://www.chess.com"]

[Event "Titled Tuesday Blitz October 04 Late 2022"]
[White "Tanenbaum, Zachary"]
[Black "Lazavik, Denis"]
[WhiteFideId "2060850"]
[BlackFideId "13515110"]
[WhiteElo "2175"]
[BlackElo "2437"]
[Result "0-1"]
[Round "04"]
[TimeControl "180+1"]
[Date "2022.10.04"]
[WhiteClock "0:00:02"]
[BlackClock "0:00:27"]

1. e4 {[%clk 0:03:00]}  c5 {[%clk 0:02:58]} 2. Nf3 {[%clk 0:03:01]}  e6 {[%clk 0:02:59]} 3. d4 {[%clk 0:03:01]}  cxd4 {[%clk 0:02:59]} 4. Nxd4 {[%clk 0:03:02]}  Nc6 {[%clk 0:02:59]} 5. Nc3 {[%clk 0:03:03]}  Qc7 {[%clk 0:03:00]} 6. g3 {[%clk 0:03:03]}  a6 {[%clk 0:02:58]} 7. Bg2 {[%clk 0:03:03]}  Bc5 {[%clk 0:02:59]} 8. Nb3 {[%clk 0:03:01]}  Be7 {[%clk 0:02:54]} 9. Bf4 {[%clk 0:02:57]}  d6 {[%clk 0:02:51]} 10. O-O {[%clk 0:02:57]}  Nf6 {[%clk 0:02:51]} 11. Re1 {[%clk 0:02:54]}  O-O {[%clk 0:02:51]} 12. a4 {[%clk 0:02:47]}  Ne5 {[%clk 0:02:46]} 13. Nd2 {[%clk 0:02:35]}  b6 {[%clk 0:02:44]} 14. Nf3 {[%clk 0:02:30]}  Bb7 {[%clk 0:02:36]} 15. Nxe5 {[%clk 0:02:28]}  dxe5 {[%clk 0:02:37]} 16. Be3 {[%clk 0:02:28]}  Bb4 {[%clk 0:02:36]} 17. Bd2 {[%clk 0:02:19]}  Rfd8 {[%clk 0:02:28]} 18. Qe2 {[%clk 0:02:19]}  h6 {[%clk 0:02:22]} 19. Red1 {[%clk 0:02:02]}  Rd4 {[%clk 0:02:17]} 20. Be1 {[%clk 0:01:27]}  Rad8 {[%clk 0:02:13]} 21. Bf3 {[%clk 0:01:19]}  Bxc3 {[%clk 0:02:01]} 22. Bxc3 {[%clk 0:01:19]}  Rxd1+ {[%clk 0:02:01]} 23. Rxd1 {[%clk 0:01:20]}  Rxd1+ {[%clk 0:02:01]} 24. Qxd1 {[%clk 0:01:20]}  Bxe4 {[%clk 0:02:01]} 25. Qe2 {[%clk 0:01:10]}  Qb7 {[%clk 0:01:46]} 26. Bxe4 {[%clk 0:01:08]}  Nxe4 {[%clk 0:01:47]} 27. h4 {[%clk 0:00:29]}  f6 {[%clk 0:01:32]} 28. Qc4 {[%clk 0:00:27]}  Kf7 {[%clk 0:01:32]} 29. a5 {[%clk 0:00:21]}  b5 {[%clk 0:01:29]} 30. Qd3 {[%clk 0:00:19]}  Qd5 {[%clk 0:01:29]} 31. Qe3 {[%clk 0:00:17]}  Kg6 {[%clk 0:01:23]} 32. f3 {[%clk 0:00:14]}  Nd6 {[%clk 0:01:17]} 33. b3 {[%clk 0:00:13]}  Nf5 {[%clk 0:01:16]} 34. Qf2 {[%clk 0:00:11]}  e4 {[%clk 0:01:12]} 35. h5+ {[%clk 0:00:11]}  Kh7 {[%clk 0:01:11]} 36. fxe4 {[%clk 0:00:06]}  Qxe4 {[%clk 0:01:11]} 37. Qd2 {[%clk 0:00:04]}  Nxg3 {[%clk 0:01:07]} 38. Kf2 {[%clk 0:00:04]}  Nxh5 {[%clk 0:01:05]} 39. Qd6 {[%clk 0:00:04]}  Qxc2+ {[%clk 0:01:05]} 40. Bd2 {[%clk 0:00:05]}  e5 {[%clk 0:01:00]} 41. b4 {[%clk 0:00:05]}  Nf4 {[%clk 0:01:00]} 42. Kf3 {[%clk 0:00:05]}  Qd1+ {[%clk 0:00:59]} 43. Ke4 {[%clk 0:00:04]}  Qe2+ {[%clk 0:00:52]} 44. Kf5 {[%clk 0:00:04]}  Qh5+ {[%clk 0:00:49]} 45. Ke4 {[%clk 0:00:04]}  Ng2 {[%clk 0:00:31]} 46. Kd5 {[%clk 0:00:03]}  Qf3+ {[%clk 0:00:30]} 47. Ke6 {[%clk 0:00:03]}  e4 {[%clk 0:00:29]} 48. Kf7 {[%clk 0:00:02]}  Qh5+ {[%clk 0:00:27]} 49. Kf8 {[%clk 0:00:02]}  Nh4 {[%clk 0:00:27]} 50. Qd7 {[%clk 0:00:02]}  Ng6+ {[%clk 0:00:27]} 51. Ke8 {[%clk 0:00:02]}  Ne5+ {[%clk 0:00:27]} 0-1


[Site "https://www.chess.com"]

[Event "Titled Tuesday Blitz October 04 Late 2022"]
[White "Zakhartsov, Vladimir"]
[Black "Svane, Rasmus"]
[WhiteFideId "4145097"]
[BlackFideId "4657101"]
[WhiteElo "2492"]
[BlackElo "2674"]
[Result "1-0"]
[Round "04"]
[TimeControl "180+1"]
[Date "2022.10.04"]
[WhiteClock "0:00:07"]
[BlackClock "0:00:09"]

1. e4 {[%clk 0:02:35]}  c6 {[%clk 0:02:59]} 2. Nf3 {[%clk 0:02:34]}  d5 {[%clk 0:03:00]} 3. Nc3 {[%clk 0:02:35]}  dxe4 {[%clk 0:03:00]} 4. Nxe4 {[%clk 0:02:36]}  Nf6 {[%clk 0:03:01]} 5. Nxf6+ {[%clk 0:02:36]}  exf6 {[%clk 0:03:02]} 6. Bc4 {[%clk 0:02:37]}  Bd6 {[%clk 0:03:02]} 7. Qe2+ {[%clk 0:02:37]}  Be7 {[%clk 0:03:03]} 8. d4 {[%clk 0:02:33]}  O-O {[%clk 0:03:04]} 9. Be3 {[%clk 0:02:32]}  Bd6 {[%clk 0:03:04]} 10. h3 {[%clk 0:02:30]}  Nd7 {[%clk 0:03:02]} 11. Bb3 {[%clk 0:02:28]}  a5 {[%clk 0:03:01]} 12. a4 {[%clk 0:02:28]}  Nb6 {[%clk 0:03:00]} 13. O-O {[%clk 0:02:24]}  Nd5 {[%clk 0:03:00]} 14. Bd2 {[%clk 0:02:23]}  Bf5 {[%clk 0:02:59]} 15. Rfe1 {[%clk 0:02:20]}  Qd7 {[%clk 0:02:58]} 16. c3 {[%clk 0:02:18]}  Bxh3 {[%clk 0:02:34]} 17. gxh3 {[%clk 0:02:05]}  Qxh3 {[%clk 0:02:35]} 18. Bd1 {[%clk 0:02:05]}  Qg4+ {[%clk 0:02:33]} 19. Kh1 {[%clk 0:02:04]}  Qh3+ {[%clk 0:02:33]} 20. Kg1 {[%clk 0:02:04]}  Qg4+ {[%clk 0:02:28]} 21. Kh1 {[%clk 0:02:05]}  Bf4 {[%clk 0:01:25]} 22. Nh2 {[%clk 0:01:28]}  Qh4 {[%clk 0:01:25]} 23. Bxf4 {[%clk 0:01:27]}  Nxf4 {[%clk 0:01:22]} 24. Qf3 {[%clk 0:01:16]}  Rae8 {[%clk 0:01:17]} 25. Bc2 {[%clk 0:01:11]}  Nh3 {[%clk 0:01:13]} 26. Rf1 {[%clk 0:00:59]}  Ng5 {[%clk 0:01:02]} 27. Qg4 {[%clk 0:00:48]}  Qxg4 {[%clk 0:01:02]} 28. Nxg4 {[%clk 0:00:49]}  Re2 {[%clk 0:01:02]} 29. Rac1 {[%clk 0:00:21]}  Rfe8 {[%clk 0:00:58]} 30. Ne3 {[%clk 0:00:21]}  Nh3 {[%clk 0:00:57]} 31. Nd1 {[%clk 0:00:14]}  Rd2 {[%clk 0:00:55]} 32. Kg2 {[%clk 0:00:13]}  Nf4+ {[%clk 0:00:53]} 33. Kf3 {[%clk 0:00:13]}  Ne2 {[%clk 0:00:54]} 34. Ne3 {[%clk 0:00:11]}  Nxc1 {[%clk 0:00:51]} 35. Rxc1 {[%clk 0:00:11]}  h5 {[%clk 0:00:35]} 36. Nc4 {[%clk 0:00:07]}  Rde2 {[%clk 0:00:36]} 37. Nd6 {[%clk 0:00:06]}  R8e6 {[%clk 0:00:23]} 38. Ne4 {[%clk 0:00:06]}  R6xe4 {[%clk 0:00:21]} 39. Bxe4 {[%clk 0:00:07]}  Rxb2 {[%clk 0:00:22]} 40. c4 {[%clk 0:00:05]}  Rb4 {[%clk 0:00:22]} 41. d5 {[%clk 0:00:05]}  cxd5 {[%clk 0:00:20]} 42. cxd5 {[%clk 0:00:06]}  g6 {[%clk 0:00:19]} 43. Rd1 {[%clk 0:00:04]}  f5 {[%clk 0:00:19]} 44. Bc2 {[%clk 0:00:03]}  Kf8 {[%clk 0:00:18]} 45. d6 {[%clk 0:00:03]}  Ke8 {[%clk 0:00:18]} 46. Bd3 {[%clk 0:00:04]}  Rb3 {[%clk 0:00:12]} 47. Kg2 {[%clk 0:00:03]}  Kd8 {[%clk 0:00:10]} 48. Bb5 {[%clk 0:00:04]}  Rb4 {[%clk 0:00:07]} 49. d7 {[%clk 0:00:03]}  h4 {[%clk 0:00:02]} 50. Rc1 {[%clk 0:00:03]}  Rd4 {[%clk 0:00:03]} 51. Rc8+ {[%clk 0:00:03]}  Ke7 {[%clk 0:00:03]} 52. Re8+ {[%clk 0:00:04]}  Kf6 {[%clk 0:00:04]} 53. d8=Q+ {[%clk 0:00:05]}  Rxd8 {[%clk 0:00:05]} 54. Rxd8 {[%clk 0:00:06]}  g5 {[%clk 0:00:06]} 55. Rd6+ {[%clk 0:00:05]}  Ke5 {[%clk 0:00:06]} 56. Rb6 {[%clk 0:00:06]}  g4 {[%clk 0:00:07]} 57. Rxb7 {[%clk 0:00:06]}  Kf4 {[%clk 0:00:08]} 58. Rxf7 {[%clk 0:00:06]}  Kg5 {[%clk 0:00:08]} 59. Bd7 {[%clk 0:00:06]}  f4 {[%clk 0:00:08]} 60. Rf5+ {[%clk 0:00:06]}  Kg6 {[%clk 0:00:08]} 61. Rxf4 {[%clk 0:00:07]}  h3+ {[%clk 0:00:09]} 1-0


[Site "https://www.chess.com"]